[Event "Early-Titled-Tuesday-Blitz-August-29-2023"]
[Site "Chess.com"]
[Date "2023.08.29"]
[Round "2"]
[White "brm72"]
[Black "WhiteKnight2612"]
[Result "0-1"]
[WhiteElo "2539"]
[BlackElo "2819"]
[TimeControl "180+1"]
[EndTime "8:18:41 PDT"]
[Termination "WhiteKnight2612 won by resignation"]

1. e4 {[%clk 0:03:00.9]} 1... c5 {[%clk 0:02:58]} 2. Nf3 {[%clk 0:03:00.5]} 2...
d6 {[%clk 0:02:57.7]} 3. d4 {[%clk 0:03:00.7]} 3... cxd4 {[%clk 0:02:57.5]} 4.
Nxd4 {[%clk 0:03:01.6]} 4... Nf6 {[%clk 0:02:57.9]} 5. Nc3 {[%clk 0:03:02]} 5...
Nc6 {[%clk 0:02:58.5]} 6. Bg5 {[%clk 0:03:01]} 6... e6 {[%clk 0:02:58.6]} 7. f3
{[%clk 0:03:00.4]} 7... a6 {[%clk 0:02:58.8]} 8. Qd2 {[%clk 0:03:00.2]} 8... Bd7
{[%clk 0:02:55.1]} 9. O-O-O {[%clk 0:02:57.1]} 9... b5 {[%clk 0:02:53.9]} 10. h4
{[%clk 0:02:51.1]} 10... h6 {[%clk 0:02:51.9]} 11. Be3 {[%clk 0:02:50.7]} 11...
h5 {[%clk 0:02:52.1]} 12. Nxc6 {[%clk 0:02:48.6]} 12... Bxc6 {[%clk 0:02:50.3]}
13. Ne2 {[%clk 0:02:48.5]} 13... Rc8 {[%clk 0:02:41.4]} 14. Nd4 {[%clk
0:02:47.7]} 14... Bb7 {[%clk 0:02:41.9]} 15. Kb1 {[%clk 0:02:47.4]} 15... Be7
{[%clk 0:02:41.8]} 16. Rc1 {[%clk 0:02:23.3]} 16... d5 {[%clk 0:02:38.2]} 17. e5
{[%clk 0:02:18.3]} 17... Nd7 {[%clk 0:02:37.9]} 18. f4 {[%clk 0:02:18.6]} 18...
Bxh4 {[%clk 0:02:33.8]} 19. f5 {[%clk 0:02:12.6]} 19... Nc5 {[%clk 0:02:15.7]}
20. fxe6 {[%clk 0:02:07.8]} 20... Nxe6 {[%clk 0:02:15.2]} 21. Rxh4 {[%clk
0:01:31.7]} 21... Qxh4 {[%clk 0:01:52.9]} 22. Nf5 {[%clk 0:01:32.2]} 22... Qh2
{[%clk 0:01:44.2]} 23. Nd6+ {[%clk 0:01:26.2]} 23... Kd7 {[%clk 0:01:39.5]} 24.
Nxb7 {[%clk 0:01:21.7]} 24... Qxe5 {[%clk 0:01:39.5]} 25. Na5 {[%clk 0:01:06.9]}
25... Rhd8 {[%clk 0:01:38.5]} 26. Nb3 {[%clk 0:01:06.3]} 26... Ke8 {[%clk
0:01:29.2]} 27. Nd4 {[%clk 0:01:06.8]} 27... Nc5 {[%clk 0:01:29.2]} 28. Bf4
{[%clk 0:00:58]} 28... Ne4 {[%clk 0:01:19.4]} 29. Qe3 {[%clk 0:00:58.4]} 29...
Qf6 {[%clk 0:01:16.4]} 30. Bd3 {[%clk 0:00:57.3]} 30... Kf8 {[%clk 0:01:16.5]}
31. Rf1 {[%clk 0:00:52.7]} 31... Qg6 {[%clk 0:01:11.9]} 32. g3 {[%clk
0:00:44.6]} 32... Kg8 {[%clk 0:01:11.2]} 33. a3 {[%clk 0:00:40.8]} 33... Re8
{[%clk 0:01:11.2]} 34. Qf3 {[%clk 0:00:40.2]} 34... Qf6 {[%clk 0:00:55.9]} 35.
Ne2 {[%clk 0:00:39.6]} 35... g6 {[%clk 0:00:51]} 36. g4 {[%clk 0:00:37.5]} 36...
hxg4 {[%clk 0:00:50.2]} 37. Qg2 {[%clk 0:00:31.4]} 37... b4 {[%clk 0:00:36.8]}
38. axb4 {[%clk 0:00:29.6]} 38... Qb6 {[%clk 0:00:31.2]} 39. Qxg4 {[%clk
0:00:17.7]} 39... Qxb4 {[%clk 0:00:29.3]} 40. Bxe4 {[%clk 0:00:16.2]} 40... Rxe4
{[%clk 0:00:26.9]} 41. Nc1 {[%clk 0:00:11.9]} 41... Rb8 {[%clk 0:00:24]} 42. Nb3
{[%clk 0:00:08.8]} 42... a5 {[%clk 0:00:20.8]} 43. Qg5 {[%clk 0:00:08]} 43...
Rbe8 {[%clk 0:00:18.2]} 44. Rh1 {[%clk 0:00:06.1]} 44... a4 {[%clk 0:00:16.4]}
45. Nc1 {[%clk 0:00:06.5]} 45... Re1 {[%clk 0:00:15.9]} 46. Rxe1 {[%clk
0:00:05.4]} 46... Qxe1 {[%clk 0:00:16]} 47. Bd2 {[%clk 0:00:05.8]} 47... Qe4
{[%clk 0:00:15.6]} 48. Bc3 {[%clk 0:00:05.9]} 48... d4 {[%clk 0:00:15.9]} 49.
Bb4 {[%clk 0:00:06.2]} 49... Qb7 {[%clk 0:00:15.4]} 50. Nd3 {[%clk 0:00:06.3]}
50... Qc6 {[%clk 0:00:14.9]} 51. Qa5 {[%clk 0:00:05.1]} 51... Rc8 {[%clk
0:00:15.2]} 52. Qa7 {[%clk 0:00:04.7]} 52... Qxc2+ {[%clk 0:00:14.3]} 53. Ka2
{[%clk 0:00:05.6]} 0-1

[Event "Early-Titled-Tuesday-Blitz-August-29-2023"]
[Site "Chess.com"]
[Date "2023.08.29"]
[Round "2"]
[White "GalaxyRoman"]
[Black "a-z30"]
[Result "1-0"]
[WhiteElo "2730"]
[BlackElo "2356"]
[TimeControl "180+1"]
[EndTime "8:18:44 PDT"]
[Termination "GalaxyRoman won on time"]

1. e4 {[%clk 0:02:59.5]} 1... d6 {[%clk 0:03:00.4]} 2. Nc3 {[%clk 0:02:58.8]}
2... Nf6 {[%clk 0:03:01]} 3. g3 {[%clk 0:02:57.5]} 3... g6 {[%clk 0:03:01.3]} 4.
Bg2 {[%clk 0:02:58]} 4... Bg7 {[%clk 0:03:01.8]} 5. d3 {[%clk 0:02:58]} 5... O-O
{[%clk 0:03:02.4]} 6. h3 {[%clk 0:02:56.7]} 6... c5 {[%clk 0:03:02.6]} 7. Be3
{[%clk 0:02:57.3]} 7... Nc6 {[%clk 0:03:03]} 8. Nge2 {[%clk 0:02:57.1]} 8... Rb8
{[%clk 0:03:01.9]} 9. a4 {[%clk 0:02:56.5]} 9... a6 {[%clk 0:03:01.1]} 10. Qd2
{[%clk 0:02:56.2]} 10... b5 {[%clk 0:03:00.6]} 11. Bh6 {[%clk 0:02:54.6]} 11...
b4 {[%clk 0:02:53.8]} 12. Nd1 {[%clk 0:02:53.8]} 12... Nd4 {[%clk 0:02:46.9]}
13. Nxd4 {[%clk 0:02:49.5]} 13... cxd4 {[%clk 0:02:46.4]} 14. Bxg7 {[%clk
0:02:48.1]} 14... Kxg7 {[%clk 0:02:45.7]} 15. b3 {[%clk 0:02:48.6]} 15... e5
{[%clk 0:02:34.3]} 16. O-O {[%clk 0:02:45.7]} 16... d5 {[%clk 0:02:29.7]} 17. f4
{[%clk 0:02:43.2]} 17... exf4 {[%clk 0:02:21.3]} 18. Qxf4 {[%clk 0:02:40.2]}
18... Be6 {[%clk 0:01:59.8]} 19. exd5 {[%clk 0:02:21.3]} 19... Bxd5 {[%clk
0:01:49.3]} 20. Bxd5 {[%clk 0:01:30.4]} 20... Nxd5 {[%clk 0:01:43.7]} 21. Qxd4+
{[%clk 0:01:27.1]} 21... Kg8 {[%clk 0:01:43.1]} 22. Ne3 {[%clk 0:01:23.6]} 22...
Nxe3 {[%clk 0:01:31.2]} 23. Qxe3 {[%clk 0:01:24.5]} 23... Qc8 {[%clk 0:01:24.2]}
24. Rf2 {[%clk 0:01:05.9]} 24... Qxh3 {[%clk 0:01:22.7]} 25. Rh2 {[%clk
0:01:05.9]} 25... Qd7 {[%clk 0:00:12.4]} 26. Rf1 {[%clk 0:00:51.4]} 26... h5
{[%clk 0:00:10.7]} 27. Rhf2 {[%clk 0:00:47.7]} 27... Rbe8 {[%clk 0:00:09.8]} 28.
Qf4 {[%clk 0:00:47.1]} 28... Qe7 {[%clk 0:00:07.8]} 29. Qc4 {[%clk 0:00:40.6]}
29... a5 {[%clk 0:00:06.6]} 30. Qb5 {[%clk 0:00:38.9]} 30... Qe3 {[%clk
0:00:05.7]} 31. Kh2 {[%clk 0:00:34.7]} 31... Re5 {[%clk 0:00:05.8]} 32. Qc4
{[%clk 0:00:34.3]} 32... Rg5 {[%clk 0:00:05.2]} 33. Rf3 {[%clk 0:00:27.9]} 33...
Qe2+ {[%clk 0:00:05.3]} 34. R1f2 {[%clk 0:00:28.1]} 34... Qe7 {[%clk 0:00:06.2]}
35. Qh4 {[%clk 0:00:19.7]} 35... Re5 {[%clk 0:00:05.7]} 36. Qf4 {[%clk
0:00:16.5]} 36... Rf5 {[%clk 0:00:03.3]} 37. Qd4 {[%clk 0:00:07.6]} 37... Rxf3
{[%clk 0:00:03]} 38. Rxf3 {[%clk 0:00:08.5]} 38... Rc8 {[%clk 0:00:03]} 39. Rf2
{[%clk 0:00:08.7]} 39... Rc6 {[%clk 0:00:03.1]} 40. Qf4 {[%clk 0:00:06.1]} 40...
Re6 {[%clk 0:00:03.1]} 41. Qf3 {[%clk 0:00:05.8]} 41... Re5 {[%clk 0:00:02.7]}
42. Qg2 {[%clk 0:00:02.9]} 42... h4 {[%clk 0:00:02]} 43. g4 {[%clk 0:00:02.1]}
43... Re6 {[%clk 0:00:02.4]} 44. Kh3 {[%clk 0:00:02.2]} 44... Re3+ {[%clk
0:00:02.6]} 45. Rf3 {[%clk 0:00:02.4]} 45... Rxf3+ {[%clk 0:00:03]} 46. Qxf3
{[%clk 0:00:03.3]} 46... Qe5 {[%clk 0:00:03.3]} 47. Qf2 {[%clk 0:00:01.6]} 47...
Qc3 {[%clk 0:00:04.2]} 48. Kxh4 {[%clk 0:00:01.5]} 48... Kg7 {[%clk 0:00:04.1]}
49. Kh3 {[%clk 0:00:02.2]} 49... Qd4 {[%clk 0:00:04.1]} 50. Qxd4+ {[%clk
0:00:01.8]} 1-0

[Event "Early-Titled-Tuesday-Blitz-August-29-2023"]
[Site "Chess.com"]
[Date "2023.08.29"]
[Round "2"]
[White "BrandonJacobson"]
[Black "wqws"]
[Result "1-0"]
[WhiteElo "2996"]
[BlackElo "2643"]
[TimeControl "180+1"]
[EndTime "8:18:45 PDT"]
[Termination "BrandonJacobson won by resignation"]

1. d4 {[%clk 0:03:00.2]} 1... Nf6 {[%clk 0:02:59.4]} 2. c4 {[%clk 0:03:00.4]}
2... e6 {[%clk 0:02:59.7]} 3. Nf3 {[%clk 0:03:00.7]} 3... d5 {[%clk 0:02:58.9]}
4. Nc3 {[%clk 0:02:59.3]} 4... Bb4 {[%clk 0:02:58.9]} 5. e3 {[%clk 0:02:53.2]}
5... O-O {[%clk 0:02:56.8]} 6. Bd3 {[%clk 0:02:54.1]} 6... b6 {[%clk 0:02:52.6]}
7. cxd5 {[%clk 0:02:53.7]} 7... exd5 {[%clk 0:02:51.6]} 8. O-O {[%clk
0:02:54.1]} 8... Ba6 {[%clk 0:02:51]} 9. Bxa6 {[%clk 0:02:53.8]} 9... Nxa6
{[%clk 0:02:51.9]} 10. Qa4 {[%clk 0:02:53.3]} 10... Qc8 {[%clk 0:02:51.8]} 11.
Qc6 {[%clk 0:02:38.9]} 11... Bxc3 {[%clk 0:02:46.3]} 12. bxc3 {[%clk 0:02:39.3]}
12... Qe8 {[%clk 0:02:33.7]} 13. Ne5 {[%clk 0:02:29.9]} 13... Qxc6 {[%clk
0:02:31.6]} 14. Nxc6 {[%clk 0:02:30.8]} 14... Rfe8 {[%clk 0:02:29.8]} 15. f3
{[%clk 0:02:30.8]} 15... Nb8 {[%clk 0:02:27.1]} 16. Nxb8 {[%clk 0:02:21.5]}
16... Raxb8 {[%clk 0:02:27]} 17. Bd2 {[%clk 0:02:21.7]} 17... c5 {[%clk
0:02:26.9]} 18. a4 {[%clk 0:02:18.4]} 18... c4 {[%clk 0:02:23.3]} 19. Rfb1
{[%clk 0:02:16.4]} 19... Kf8 {[%clk 0:02:22]} 20. Kf2 {[%clk 0:02:07.5]} 20...
Ke7 {[%clk 0:02:21.9]} 21. Ke2 {[%clk 0:02:08]} 21... Kd7 {[%clk 0:02:22.1]} 22.
Be1 {[%clk 0:02:08.5]} 22... Kc6 {[%clk 0:02:01.2]} 23. Bg3 {[%clk 0:02:02.1]}
23... Rb7 {[%clk 0:02:01.6]} 24. Kd2 {[%clk 0:01:59.7]} 24... Rbe7 {[%clk
0:01:57.1]} 25. Bf2 {[%clk 0:01:59.5]} 25... a5 {[%clk 0:01:51.1]} 26. Rb5
{[%clk 0:01:57.2]} 26... Rb8 {[%clk 0:01:33.1]} 27. Rab1 {[%clk 0:01:56.4]}
27... Rbb7 {[%clk 0:01:31.4]} 28. Bh4 {[%clk 0:01:51.3]} 28... h6 {[%clk
0:01:13.9]} 29. Bxf6 {[%clk 0:01:40.3]} 29... gxf6 {[%clk 0:01:13.8]} 30. g4
{[%clk 0:01:41.2]} 30... Re8 {[%clk 0:01:04.2]} 31. Rf1 {[%clk 0:01:26.6]} 31...
Rbe7 {[%clk 0:00:57.9]} 32. e4 {[%clk 0:01:25.1]} 32... dxe4 {[%clk 0:00:56]}
33. fxe4 {[%clk 0:01:26]} 33... Rxe4 {[%clk 0:00:54.9]} 34. Rxf6+ {[%clk
0:01:26.3]} 34... Kc7 {[%clk 0:00:53.9]} 35. Rxf7+ {[%clk 0:01:25.8]} 35... Kc8
{[%clk 0:00:54.3]} 36. Rf2 {[%clk 0:01:24]} 36... Kb7 {[%clk 0:00:44]} 37. g5
{[%clk 0:00:43.5]} 37... hxg5 {[%clk 0:00:42.7]} 38. Rxg5 {[%clk 0:00:44.4]}
38... Re1 {[%clk 0:00:41.2]} 39. h4 {[%clk 0:00:33.3]} 39... Ra1 {[%clk
0:00:37.4]} 40. Re5 {[%clk 0:00:33.9]} 40... Rxe5 {[%clk 0:00:16.2]} 41. dxe5
{[%clk 0:00:34.7]} 41... Rh1 {[%clk 0:00:16.1]} 42. e6 {[%clk 0:00:29.1]} 42...
Kc6 {[%clk 0:00:15.4]} 43. Re2 {[%clk 0:00:26.1]} 43... Ra1 {[%clk 0:00:12.7]}
44. Re4 {[%clk 0:00:18.8]} 44... Ra2+ {[%clk 0:00:06.9]} 45. Ke3 {[%clk
0:00:18.8]} 45... Ra1 {[%clk 0:00:06.9]} 46. Kf2 {[%clk 0:00:16.9]} 46... Ra2+
{[%clk 0:00:05.4]} 47. Kg3 {[%clk 0:00:17.3]} 47... Ra1 {[%clk 0:00:01.5]} 48.
e7 {[%clk 0:00:14.9]} 48... Rg1+ {[%clk 0:00:02.1]} 49. Kf2 {[%clk 0:00:14.9]}
49... Rg8 {[%clk 0:00:03]} 50. e8=Q+ {[%clk 0:00:14.7]} 50... Rxe8 {[%clk
0:00:03.9]} 51. Rxe8 {[%clk 0:00:15.6]} 1-0

[Event "Early-Titled-Tuesday-Blitz-August-29-2023"]
[Site "Chess.com"]
[Date "2023.08.29"]
[Round "2"]
[White "Biregina"]
[Black "Kezin_Roman"]
[Result "0-1"]
[WhiteElo "2463"]
[BlackElo "2797"]
[TimeControl "180+1"]
[EndTime "8:18:48 PDT"]
[Termination "Kezin_Roman won on time"]

1. d4 {[%clk 0:03:00.9]} 1... f5 {[%clk 0:02:57.9]} 2. g3 {[%clk 0:02:54.3]}
2... Nf6 {[%clk 0:02:57.3]} 3. Bg2 {[%clk 0:02:53.7]} 3... g6 {[%clk 0:02:57.6]}
4. c4 {[%clk 0:02:52.6]} 4... Bg7 {[%clk 0:02:57.5]} 5. Nc3 {[%clk 0:02:52.9]}
5... O-O {[%clk 0:02:57.8]} 6. Nh3 {[%clk 0:02:52.4]} 6... d6 {[%clk 0:02:56]}
7. O-O {[%clk 0:02:51.8]} 7... e5 {[%clk 0:02:54.5]} 8. dxe5 {[%clk 0:02:36.4]}
8... dxe5 {[%clk 0:02:55.1]} 9. Qxd8 {[%clk 0:02:36.7]} 9... Rxd8 {[%clk
0:02:54.6]} 10. Bg5 {[%clk 0:02:37.2]} 10... c6 {[%clk 0:02:51.8]} 11. Rfd1
{[%clk 0:02:32.9]} 11... Re8 {[%clk 0:02:51.3]} 12. f3 {[%clk 0:01:58]} 12...
Be6 {[%clk 0:02:48.9]} 13. b3 {[%clk 0:01:52.2]} 13... Nbd7 {[%clk 0:02:48.2]}
14. Nf2 {[%clk 0:01:50.6]} 14... Kf7 {[%clk 0:02:32.7]} 15. e4 {[%clk
0:01:46.4]} 15... h6 {[%clk 0:02:31.3]} 16. Be3 {[%clk 0:01:46.4]} 16... Bf8
{[%clk 0:02:28.7]} 17. Nd3 {[%clk 0:01:42.3]} 17... fxe4 {[%clk 0:02:20.5]} 18.
Nxe4 {[%clk 0:01:38.6]} 18... Nxe4 {[%clk 0:02:20]} 19. fxe4 {[%clk 0:01:39.5]}
19... Kg7 {[%clk 0:02:20.4]} 20. Nf2 {[%clk 0:00:53.7]} 20... a5 {[%clk
0:02:16.8]} 21. Bh3 {[%clk 0:00:51.7]} 21... Bxh3 {[%clk 0:02:11.2]} 22. Nxh3
{[%clk 0:00:52.6]} 22... Nc5 {[%clk 0:02:11.1]} 23. Nf2 {[%clk 0:00:42.7]} 23...
Rad8 {[%clk 0:02:11.2]} 24. Kf1 {[%clk 0:00:40.9]} 24... Ne6 {[%clk 0:02:10.1]}
25. Ke2 {[%clk 0:00:38.9]} 25... Bc5 {[%clk 0:02:08.1]} 26. Rxd8 {[%clk
0:00:37.7]} 26... Rxd8 {[%clk 0:02:07.8]} 27. Rd1 {[%clk 0:00:38]} 27... Bd4
{[%clk 0:02:02.4]} 28. Nd3 {[%clk 0:00:32.2]} 28... h5 {[%clk 0:01:59.2]} 29.
Rd2 {[%clk 0:00:25.6]} 29... Kf6 {[%clk 0:01:56]} 30. Ne1 {[%clk 0:00:22.8]}
30... a4 {[%clk 0:01:38.9]} 31. Nc2 {[%clk 0:00:20.1]} 31... Ke7 {[%clk
0:01:00]} 32. bxa4 {[%clk 0:00:17.8]} 32... c5 {[%clk 0:00:58.7]} 33. Ne1 {[%clk
0:00:10.8]} 33... Ra8 {[%clk 0:00:57.9]} 34. Nf3 {[%clk 0:00:10.5]} 34... Rxa4
{[%clk 0:00:56.7]} 35. Rc2 {[%clk 0:00:09.9]} 35... Ra3 {[%clk 0:00:54.5]} 36.
Bxd4 {[%clk 0:00:09.8]} 36... exd4 {[%clk 0:00:51.9]} 37. Ne1 {[%clk 0:00:08.8]}
37... Re3+ {[%clk 0:00:51]} 38. Kd2 {[%clk 0:00:08.5]} 38... Rxe4 {[%clk
0:00:50.3]} 39. Rb2 {[%clk 0:00:08.5]} 39... Nd8 {[%clk 0:00:50]} 40. Nd3 {[%clk
0:00:08]} 40... h4 {[%clk 0:00:25.1]} 41. Nxc5 {[%clk 0:00:07.6]} 41... Rg4
{[%clk 0:00:25.4]} 42. gxh4 {[%clk 0:00:07.8]} 42... Rxh4 {[%clk 0:00:20.2]} 43.
Rb6 {[%clk 0:00:08.3]} 43... Rxh2+ {[%clk 0:00:19.8]} 44. Kd3 {[%clk 0:00:08.8]}
44... g5 {[%clk 0:00:12.8]} 45. Nxb7 {[%clk 0:00:08.5]} 45... Ne6 {[%clk
0:00:12.7]} 46. Na5 {[%clk 0:00:07.5]} 46... Rh3+ {[%clk 0:00:12.2]} 47. Ke4
{[%clk 0:00:06.9]} 47... Re3+ {[%clk 0:00:11.8]} 48. Kd5 {[%clk 0:00:06.5]}
48... d3 {[%clk 0:00:10.7]} 49. Nc6+ {[%clk 0:00:06.8]} 49... Kf6 {[%clk
0:00:09.9]} 50. Nd4 {[%clk 0:00:07.2]} 50... d2 {[%clk 0:00:08.9]} 51. Rb1
{[%clk 0:00:07]} 51... Re1 {[%clk 0:00:08.2]} 52. Nf3 {[%clk 0:00:04.4]} 52...
Rxb1 {[%clk 0:00:07.6]} 53. Nxd2 {[%clk 0:00:05.3]} 53... Rd1 {[%clk 0:00:08.4]}
0-1

[Event "Early-Titled-Tuesday-Blitz-August-29-2023"]
[Site "Chess.com"]
[Date "2023.08.29"]
[Round "2"]
[White "Rsnr"]
[Black "TimGrutter03"]
[Result "1-0"]
[WhiteElo "2903"]
[BlackElo "2591"]
[TimeControl "180+1"]
[EndTime "8:18:49 PDT"]
[Termination "Rsnr won by checkmate"]

1. d4 {[%clk 0:03:00]} 1... g6 {[%clk 0:02:58.2]} 2. c4 {[%clk 0:02:59.8]} 2...
Bg7 {[%clk 0:02:58.8]} 3. Nf3 {[%clk 0:03:00.2]} 3... d6 {[%clk 0:02:59.3]} 4.
Nc3 {[%clk 0:03:00.3]} 4... Nc6 {[%clk 0:02:58.4]} 5. d5 {[%clk 0:02:59.9]} 5...
Ne5 {[%clk 0:02:58.6]} 6. Nxe5 {[%clk 0:02:59.9]} 6... Bxe5 {[%clk 0:02:59.4]}
7. e4 {[%clk 0:03:00.4]} 7... c5 {[%clk 0:02:56.8]} 8. Bd3 {[%clk 0:02:57.2]}
8... Nf6 {[%clk 0:02:51.6]} 9. O-O {[%clk 0:02:56.3]} 9... O-O {[%clk
0:02:48.9]} 10. h3 {[%clk 0:02:52.6]} 10... e6 {[%clk 0:02:45.6]} 11. Bg5 {[%clk
0:02:51.4]} 11... exd5 {[%clk 0:02:41.6]} 12. exd5 {[%clk 0:02:52.1]} 12... Qb6
{[%clk 0:02:34.7]} 13. Qd2 {[%clk 0:02:37.6]} 13... Nd7 {[%clk 0:02:27.2]} 14.
Rfe1 {[%clk 0:02:31.8]} 14... Bg7 {[%clk 0:02:20.2]} 15. Be7 {[%clk 0:01:48.4]}
15... Re8 {[%clk 0:02:18.6]} 16. Nb5 {[%clk 0:01:48.9]} 16... a6 {[%clk
0:02:03]} 17. Bxd6 {[%clk 0:01:49.5]} 17... Rxe1+ {[%clk 0:01:58.8]} 18. Rxe1
{[%clk 0:01:50.4]} 18... axb5 {[%clk 0:01:59.2]} 19. Re8+ {[%clk 0:01:50.4]}
19... Nf8 {[%clk 0:01:42.9]} 20. Be7 {[%clk 0:01:20.8]} 20... bxc4 {[%clk
0:01:37.6]} 21. Bxc4 {[%clk 0:01:20.7]} 21... Ra4 {[%clk 0:00:51.6]} 22. b3
{[%clk 0:01:18.5]} 22... Bd7 {[%clk 0:00:49.8]} 23. Rd8 {[%clk 0:00:16.8]} 23...
Qa5 {[%clk 0:00:32.5]} 24. Qxa5 {[%clk 0:00:13.9]} 24... Rxa5 {[%clk 0:00:33.4]}
25. Bxf8 {[%clk 0:00:14.8]} 25... Bxf8 {[%clk 0:00:34.2]} 26. Rxd7 {[%clk
0:00:15.3]} 26... b5 {[%clk 0:00:34.1]} 27. Bf1 {[%clk 0:00:15.8]} 27... b4
{[%clk 0:00:24.7]} 28. Bc4 {[%clk 0:00:16.1]} 28... Rxa2 {[%clk 0:00:24.5]} 29.
d6 {[%clk 0:00:16.9]} 29... Rd2 {[%clk 0:00:19.8]} 30. Rxf7 {[%clk 0:00:07.5]}
30... Rd1+ {[%clk 0:00:13.9]} 31. Kh2 {[%clk 0:00:08.4]} 31... Bxd6+ {[%clk
0:00:14.5]} 32. g3 {[%clk 0:00:08.8]} 32... Rd4 {[%clk 0:00:13.3]} 33. Rd7+
{[%clk 0:00:06.8]} 33... Kh8 {[%clk 0:00:06.7]} 34. Kg2 {[%clk 0:00:07.2]} 34...
Be5 {[%clk 0:00:04.2]} 35. Re7 {[%clk 0:00:06.5]} 35... Bd6 {[%clk 0:00:04.3]}
36. Rf7 {[%clk 0:00:06.4]} 36... Rd2 {[%clk 0:00:03.1]} 37. h4 {[%clk
0:00:06.3]} 37... Be5 {[%clk 0:00:03]} 38. Kh3 {[%clk 0:00:06.2]} 38... Bd4
{[%clk 0:00:02.9]} 39. f3 {[%clk 0:00:05.3]} 39... Rc2 {[%clk 0:00:01.9]} 40. h5
{[%clk 0:00:02.9]} 40... gxh5 {[%clk 0:00:01.8]} 41. Kh4 {[%clk 0:00:03.2]}
41... Rxc4 {[%clk 0:00:02]} 42. bxc4 {[%clk 0:00:03]} 42... b3 {[%clk
0:00:02.9]} 43. Rb7 {[%clk 0:00:03.9]} 43... b2 {[%clk 0:00:03.4]} 44. Kxh5
{[%clk 0:00:04.4]} 44... Kg8 {[%clk 0:00:03.9]} 45. Rb3 {[%clk 0:00:04.9]} 45...
Kf8 {[%clk 0:00:04]} 46. Kg4 {[%clk 0:00:05.5]} 46... Kf7 {[%clk 0:00:04.3]} 47.
Kf5 {[%clk 0:00:05.9]} 47... Kg7 {[%clk 0:00:03.9]} 48. g4 {[%clk 0:00:05.7]}
48... Kh6 {[%clk 0:00:03.7]} 49. Rb7 {[%clk 0:00:05.4]} 49... Bc3 {[%clk
0:00:01.1]} 50. g5+ {[%clk 0:00:05.3]} 50... Kh5 {[%clk 0:00:01.9]} 51. Rxh7#
{[%clk 0:00:05.6]} 1-0

[Event "Early-Titled-Tuesday-Blitz-August-29-2023"]
[Site "Chess.com"]
[Date "2023.08.29"]
[Round "2"]
[White "Elsa167"]
[Black "JiaHaoxiang"]
[Result "1-0"]
[WhiteElo "2882"]
[BlackElo "2576"]
[TimeControl "180+1"]
[EndTime "8:18:49 PDT"]
[Termination "Elsa167 won by resignation"]

1. d4 {[%clk 0:03:00.9]} 1... Nf6 {[%clk 0:02:59.6]} 2. c4 {[%clk 0:03:00.7]}
2... g6 {[%clk 0:02:59]} 3. Nc3 {[%clk 0:03:01]} 3... Bg7 {[%clk 0:02:58.2]} 4.
e4 {[%clk 0:03:01.3]} 4... d6 {[%clk 0:02:58.1]} 5. h3 {[%clk 0:03:01.3]} 5...
O-O {[%clk 0:02:57.5]} 6. Be3 {[%clk 0:03:01.9]} 6... e5 {[%clk 0:02:57.3]} 7.
d5 {[%clk 0:03:02.1]} 7... Na6 {[%clk 0:02:47.6]} 8. g4 {[%clk 0:03:01.9]} 8...
Nd7 {[%clk 0:02:45.5]} 9. h4 {[%clk 0:02:59.9]} 9... f5 {[%clk 0:02:43.9]} 10.
gxf5 {[%clk 0:02:58.9]} 10... gxf5 {[%clk 0:02:27.7]} 11. exf5 {[%clk
0:02:59.8]} 11... Ndc5 {[%clk 0:02:25.1]} 12. Nge2 {[%clk 0:02:55.5]} 12... Bxf5
{[%clk 0:02:24.5]} 13. Ng3 {[%clk 0:02:55.8]} 13... Bd7 {[%clk 0:02:19.5]} 14.
Qd2 {[%clk 0:02:36.7]} 14... e4 {[%clk 0:02:15.5]} 15. Nh5 {[%clk 0:02:32.5]}
15... Be5 {[%clk 0:01:57.6]} 16. O-O-O {[%clk 0:01:30.6]} 16... Kh8 {[%clk
0:01:54]} 17. Bd4 {[%clk 0:01:25.6]} 17... Qe8 {[%clk 0:01:34.7]} 18. Be2 {[%clk
0:00:44.2]} 18... Bxd4 {[%clk 0:01:09]} 19. Qxd4+ {[%clk 0:00:44]} 19... Qe5
{[%clk 0:01:09.9]} 20. Qxe5+ {[%clk 0:00:37.2]} 20... dxe5 {[%clk 0:01:03.1]}
21. d6 {[%clk 0:00:30]} 21... c6 {[%clk 0:01:00.3]} 22. a3 {[%clk 0:00:26.7]}
22... Nb3+ {[%clk 0:00:57.2]} 23. Kb1 {[%clk 0:00:26.8]} 23... Nac5 {[%clk
0:00:56.6]} 24. Rhf1 {[%clk 0:00:22]} 24... Nd4 {[%clk 0:00:48.4]} 25. Ng3
{[%clk 0:00:20.4]} 25... Rf4 {[%clk 0:00:45.4]} 26. h5 {[%clk 0:00:20.1]} 26...
Raf8 {[%clk 0:00:44.3]} 27. b4 {[%clk 0:00:20.7]} 27... Nd3 {[%clk 0:00:26.3]}
28. Bxd3 {[%clk 0:00:20.7]} 28... exd3 {[%clk 0:00:25.7]} 29. Rxd3 {[%clk
0:00:20.6]} 29... Rxf2 {[%clk 0:00:25.7]} 30. Rxf2 {[%clk 0:00:20.5]} 30... Rxf2
{[%clk 0:00:26.6]} 31. Re3 {[%clk 0:00:17.3]} 31... Rf3 {[%clk 0:00:19.5]} 32.
Rxf3 {[%clk 0:00:13.7]} 32... Nxf3 {[%clk 0:00:20.4]} 33. Nce4 {[%clk
0:00:13.2]} 33... Kg7 {[%clk 0:00:20.1]} 34. Nc5 {[%clk 0:00:12.6]} 34... Bg4
{[%clk 0:00:16.6]} 35. d7 {[%clk 0:00:13.2]} 35... Bxd7 {[%clk 0:00:16]} 36.
Nxd7 {[%clk 0:00:14.1]} 36... b6 {[%clk 0:00:15.4]} 37. Kc2 {[%clk 0:00:13.7]}
37... Kh6 {[%clk 0:00:15.2]} 38. Kd3 {[%clk 0:00:13.3]} 38... Kg5 {[%clk
0:00:15.6]} 39. Ke4 {[%clk 0:00:12.7]} 39... Nd2+ {[%clk 0:00:15.2]} 40. Kd3
{[%clk 0:00:13.2]} 40... Nf3 {[%clk 0:00:15.3]} 41. Ke3 {[%clk 0:00:13.8]} 41...
Nd4 {[%clk 0:00:14.7]} 42. Nxe5 {[%clk 0:00:13.1]} 42... Nc2+ {[%clk 0:00:14.6]}
43. Kd3 {[%clk 0:00:13.3]} 43... Nxa3 {[%clk 0:00:14.7]} 44. Nxc6 {[%clk
0:00:13.2]} 44... Kg4 {[%clk 0:00:15.4]} 45. Ne4 {[%clk 0:00:12.2]} 45... Kxh5
{[%clk 0:00:15.6]} 46. Nxa7 {[%clk 0:00:12.4]} 46... Kg4 {[%clk 0:00:09.3]} 47.
Nc8 {[%clk 0:00:11.8]} 47... h5 {[%clk 0:00:09.4]} 48. Nxb6 {[%clk 0:00:11.5]}
48... h4 {[%clk 0:00:09.9]} 49. Nd5 {[%clk 0:00:10.8]} 49... Kf3 {[%clk
0:00:09.9]} 50. Ng5+ {[%clk 0:00:09.1]} 50... Kg4 {[%clk 0:00:09.3]} 51. Ne4
{[%clk 0:00:09.1]} 51... Kf3 {[%clk 0:00:09.6]} 52. b5 {[%clk 0:00:08.1]} 52...
h3 {[%clk 0:00:09.6]} 53. Ng5+ {[%clk 0:00:08.4]} 53... Kg4 {[%clk 0:00:10.2]}
54. Nxh3 {[%clk 0:00:09.3]} 54... Kxh3 {[%clk 0:00:10.8]} 55. b6 {[%clk
0:00:09.5]} 1-0